bitfinex/quotes_SOLUSD_20220113
["timestamp","ask_amount","ask_price","bid_price","bid_amount"]
[1642093527846,12.08799521,152.79,152.63,2.618]
[1642093528045,28.16099521,152.79,152.65,4.9122]
[1642093528245,1.64999521,152.78,152.63,2.618]
[1642093528445,33.41092769,152.77,152.63,2.618]
[1642093528844,1.64999521,152.76,152.63,2.618]
[1642093529047,2.619,152.75,152.6,48.0802]
[1642093529247,9.8256,152.74,152.63,4.9128]
[1642093529545,2.619,152.73,152.63,4.9128]
[1642093529745,17.67626302,152.72,152.63,4.9128]
[1642093529944,24.18626302,152.72,152.63,4.9128]
[1642093530145,9.8254,152.71,152.64,4.9126]
[1642093530345,10.0754,152.71,152.64,4.9126]
[1642093530546,16.3354,152.71,152.64,4.9126]
[1642093531450,16.3354,152.71,152.63,4.9129]
[1642093531655,18.9554,152.71,152.6,48.0802]
[1642093531946,20.60539521,152.71,152.58,24.5932]
[1642093532146,85.93539521,152.71,152.58,24.5932]
[1642093532545,20.60539521,152.71,152.58,24.5932]
[1642093533148,20.60539521,152.71,152.58,29.5074]
[1642093533349,20.60539521,152.71,152.58,24.5932]
[1642093535252,20.35539521,152.71,152.59,7.5341]
[1642093535449,28.17539521,152.71,152.59,7.5341]
[1642093535849,28.17539521,152.71,152.59,2.62]
[1642093536452,28.17539521,152.71,152.56,50.6002]
[1642093536653,28.42539521,152.71,152.56,50.6002]
[1642093537254,28.42539521,152.71,152.59,4.9141]
[1642093537453,93.75539521,152.71,152.59,4.9141]
[1642093538853,93.75539521,152.71,152.57,4.9146]
[1642093539053,93.75539521,152.71,152.56,50.6002]
[1642093539859,93.50539521,152.71,152.56,50.6002]
[1642093540855,93.24539521,152.71,152.56,50.6002]
[1642093541158,93.24539521,152.71,152.56,55.5153]
[1642093541360,93.49539521,152.71,152.56,55.5153]
[1642093541658,103.49859521,152.71,152.56,50.6002]
[1642093541862,103.49859521,152.71,152.56,47.9802]
[1642093542360,103.75859521,152.71,152.56,47.9802]
[1642093542760,103.75859521,152.71,152.57,4.9148]
[1642093542960,103.75859521,152.71,152.57,7.5348]
[1642093543160,38.16859521,152.71,152.57,7.5348]
[1642093544189,38.16859521,152.71,152.58,3.9316]
[1642093544590,103.49859521,152.71,152.58,3.9316]
[1642093544788,103.49859521,152.71,152.57,2.62]
[1642093544989,93.75539521,152.71,152.57,2.62]
[1642093545190,28.42539521,152.71,152.57,2.62]
[1642093545389,28.17539521,152.71,152.59,3.9312]
[1642093545589,26.5254,152.71,152.59,3.9312]
[1642093546191,26.5254,152.71,152.58,23.822]
[1642093546590,28.17539521,152.71,152.58,23.822]
[1642093546790,28.42539521,152.71,152.58,23.822]
[1642093548192,28.42539521,152.71,152.58,27.7536]
[1642093548392,28.42539521,152.71,152.58,23.822]
[1642093549694,28.16539521,152.71,152.58,23.822]
[1642093550292,28.16539521,152.71,152.59,3.9314]
[1642093551195,93.49539521,152.71,152.59,3.9314]
[1642093551594,93.75539521,152.71,152.58,27.7536]
[1642093552198,93.75539521,152.71,152.58,23.822]
[1642093554799,103.71269521,152.71,152.58,23.822]
[1642093555199,103.71269521,152.71,152.58,27.7535]
[1642093557804,103.46269521,152.71,152.58,27.7535]
[1642093558004,26.2654,152.71,152.58,23.822]
[1642093558605,23.6454,152.71,152.58,23.822]
[1642093559306,23.6454,152.71,152.63,3.9304]
[1642093559605,23.8954,152.71,152.63,3.9304]
[1642093560708,24.1554,152.71,152.63,3.9304]
[1642093562706,24.1554,152.71,152.6,25.5839]
[1642093562707,25.80539521,152.71,152.6,25.5839]
[1642093562907,2.62,152.7,152.6,22.9639]
[1642093563108,9.8282,152.69,152.6,22.9639]
[1642093563508,16.3382,152.69,152.6,22.9639]
[1642093563710,22.76121692,152.68,152.6,22.9639]
[1642093564108,29.27121692,152.68,152.6,22.9639]
[1642093565312,9.8267,152.67,152.62,3.9307]
[1642093565513,16.3367,152.67,152.62,3.9307]
[1642093565712,16.3367,152.67,152.6,22.9639]
[1642093566114,16.3367,152.67,152.61,3.9308]
[1642093566914,16.3367,152.67,152.57,2.62]
[1642093567213,18.9567,152.67,152.58,3.9315]
[1642093568016,18.9567,152.67,152.56,92.7652]
[1642093568417,73.15,152.66,152.53,0.00742241]
[1642093568617,0.48826789,152.55,152.45,2.62]
[1642093568817,10.442,152.54,152.43,11.64167371]
[1642093569018,23.25307004,152.54,152.43,11.64167371]
[1642093569222,88.84307004,152.54,152.43,11.64167371]
[1642093569419,42.71564234,152.53,152.43,11.64167371]
[1642093569619,9.8389,152.51,152.43,9.02067371]
[1642093569826,7.82,152.5,152.43,9.02067371]
[1642093570037,14.33,152.5,152.41,16.24078799]
[1642093570243,14.08,152.5,152.41,16.24078799]
[1642093570443,8.33,152.5,152.42,2.623]
[1642093570640,8.08,152.5,152.42,2.623]
[1642093570840,8.33,152.5,152.42,2.623]
[1642093571641,8.08,152.5,152.42,2.623]
[1642093571842,8.33,152.5,152.42,2.623]
[1642093572844,18.1683,152.5,152.42,2.623]
[1642093573042,24.1683,152.5,152.41,16.24078799]
[1642093573242,24.1683,152.5,152.39,2.623]
[1642093574342,24.1683,152.5,152.39,21.20278031]
[1642093574947,25.81829521,152.5,152.39,21.20278031]
[1642093575243,25.81829521,152.5,152.39,2.623]
[1642093575447,9.8424,152.48,152.35,2.623]
[1642093575644,7.82,152.47,152.35,2.623]
[1642093575944,79.15,152.47,152.35,2.623]
[1642093576144,65.33,152.45,152.31,21.28642485]
[1642093576345,43.263,152.44,152.33,2.624]
[1642093576546,19.97902252,152.43,152.32,2.86776214]
[1642093576743,17.6657,152.42,152.32,2.86776214]
[1642093577146,23.9157,152.42,152.32,2.86776214]
[1642093577344,23.9157,152.42,152.32,0.24376214]
[1642093577345,13.82,152.42,152.32,0.24376214]
[1642093578446,7.82,152.42,152.33,2.625]
[1642093578645,13.82,152.42,152.34,1.22025699]
[1642093578847,23.9133,152.42,152.34,1.22025699]
[1642093580049,14.07,152.42,152.34,1.22025699]
[1642093580249,9.8425,152.44,152.34,1.22025699]
[1642093580551,7.82,152.45,152.34,1.47025699]
[1642093580748,7.82,152.48,152.35,2.624]
[1642093580947,7.82,152.48,152.35,2.874]
[1642093581550,8.08,152.48,152.35,2.874]
[1642093581950,13.82,152.48,152.35,2.874]
[1642093582152,23.6603,152.48,152.37,3.9361]
[1642093582451,23.6603,152.48,152.38,23.4446853]
[1642093583154,23.6603,152.48,152.38,20.8206853]
[1642093583452,23.9103,152.48,152.38,20.8206853]
[1642093584056,23.9103,152.48,152.38,23.4446853]
[1642093584553,24.1703,152.48,152.38,20.8206853]
[1642093585455,26.7943,152.48,152.38,20.8206853]
[1642093585857,26.7943,152.48,152.38,11.7486853]
[1642093586056,26.7943,152.48,152.37,3.9363]
[1642093587960,26.7943,152.48,152.35,38.69850176]
[1642093588161,28.44429521,152.48,152.35,24.8448]
[1642093588790,40.74421518,152.48,152.35,24.8448]
[1642093588960,9.8457,152.47,152.35,24.8448]
[1642093589164,32.88006549,152.46,152.34,25.1325]
[1642093589363,34.5300607,152.46,152.34,25.1325]
[1642093589562,65.33,152.45,152.34,25.1325]
[1642093589762,10.444,152.44,152.34,22.5085]
[1642093589963,16.694,152.44,152.34,22.5085]
[1642093590164,16.954,152.44,152.34,22.5085]
[1642093591166,30.37069605,152.43,152.34,22.5085]
[1642093591366,7.82,152.42,152.34,22.5085]
[1642093591565,14.07,152.42,152.34,22.5085]
[1642093591766,14.33,152.42,152.34,22.5085]
[1642093592466,24.1752,152.42,152.34,22.5085]
[1642093592872,24.1752,152.42,152.31,27.025]
[1642093593472,25.82519521,152.42,152.31,27.025]
[1642093593669,24.1752,152.42,152.31,27.025]
[1642093594269,17.6652,152.42,152.31,27.025]
[1642093594469,7.82,152.42,152.31,92.615]
[1642093594670,7.82,152.42,152.35,3.937]
[1642093595271,7.82,152.42,152.32,22.87916214]
[1642093595471,17.6631,152.42,152.32,74.53247363]
[1642093595669,23.6631,152.42,152.34,3.9375]
[1642093596073,16.1031,152.42,152.35,0.06576758]
[1642093596293,16.3531,152.42,152.35,0.06576758]
[1642093597298,16.3531,152.42,152.33,0.06577621]
[1642093597499,16.3531,152.42,152.33,2.69077621]
[1642093598499,23.86780945,152.41,152.33,2.69077621]
[1642093598701,9.8458,152.38,152.33,0.06577621]
[1642093599100,16.3558,152.38,152.33,0.06577621]
[1642093601306,33.50333373,152.38,152.33,0.06577621]
[1642093601505,39.85833373,152.38,152.33,0.06577621]
[1642093602005,1.64999521,152.37,152.33,0.06577621]
[1642093602205,1.64999521,152.37,152.32,0.24376214]
[1642093602206,9.8498,152.35,152.32,3.835e-05]
[1642093602406,9.8498,152.35,152.21,6.566]
[1642093602407,67.83,152.34,152.21,6.566]
[1642093602606,10.446,152.33,152.21,2.625]
[1642093602906,10.446,152.33,152.19,2.626]
[1642093603106,66.97999521,152.32,152.19,2.626]
[1642093603306,9.8514,152.3,152.2,10.37227041]
[1642093603506,13.82,152.33,152.24,3.9402]
[1642093603707,1.64999521,152.34,152.24,3.9402]
[1642093603910,7.82,152.39,152.25,2.626]
[1642093604108,13.82,152.39,152.25,1.626]
[1642093604308,9.8482,152.35,152.25,1.626]
[1642093604509,9.8482,152.35,152.27,3.9396]
[1642093604510,15.8482,152.35,152.27,3.9396]
[1642093604708,39.69779313,152.35,152.27,3.9396]
[1642093605309,39.69779313,152.35,152.25,1.626]
[1642093605508,15.8482,152.35,152.25,1.626]
[1642093605909,16.0982,152.35,152.25,1.626]
[1642093606309,32.8314,152.36,152.25,1.626]
[1642093606310,7.82,152.37,152.26,3.9399]
[1642093606513,7.82,152.37,152.28,10.96751071]
[1642093606710,2.625,152.42,152.29,2.625]
[1642093606910,10.445,152.45,152.31,2.46717112]
[1642093607113,7.82,152.45,152.32,25.5354]
[1642093607511,7.82,152.45,152.32,27.43539521]
[1642093607918,9.842,152.44,152.33,13.123]
[1642093608116,24.91309035,152.46,152.34,2.624]
[1642093608316,23.52771822,152.43,152.37,3.9371]
[1642093608519,23.78771822,152.43,152.34,2.624]
[1642093608718,23.78771822,152.43,152.32,25.5344]
[1642093609019,0.26,152.43,152.32,25.5344]
[1642093609219,6.26,152.43,152.38,3.9366]
[1642093609417,0.26,152.44,152.32,27.43439521]
[1642093609617,0.26,152.43,152.32,27.69439521]
[1642093609817,0.26,152.44,152.32,27.43439521]
[1642093610018,10.1024,152.44,152.32,25.5344]
[1642093610316,9.8424,152.44,152.32,25.5344]
[1642093610520,10.0924,152.44,152.32,25.5344]
[1642093610918,18.7174,152.44,152.32,25.5344]
[1642093611117,18.7174,152.44,152.34,3.9378]
[1642093611521,18.7174,152.44,152.32,25.5344]
[1642093612121,33.46439521,152.44,152.32,2.624]
[1642093612319,65.4,152.43,152.29,24.6007]
[1642093612520,20.2928,152.42,152.29,24.6007]
[1642093612721,87.27279521,152.42,152.29,24.6007]
[1642093612920,21.72517125,152.41,152.29,24.6007]
[1642093613119,10.445,152.4,152.28,24.4708]
[1642093613523,9.8478,152.36,152.28,24.4708]
[1642093613720,17.2728,152.36,152.28,24.4708]
[1642093613921,23.7828,152.36,152.28,24.4708]
[1642093614125,17.62856544,152.35,152.28,24.4708]
[1642093614323,17.62856544,152.35,152.27,4.9243]
[1642093614524,9.8496,152.33,152.24,2.626]
[1642093614921,16.3596,152.33,152.24,2.626]
[1642093615122,2.626,152.32,152.2,0.32838815]
[1642093615322,18.29177585,152.31,152.2,0.32838815]
[1642093615522,9.8543,152.26,152.2,0.32838815]
[1642093615924,15.8543,152.26,152.2,0.32838815]
[1642093616326,16.1043,152.26,152.2,0.32838815]
[1642093616725,81.4343,152.26,152.2,0.32838815]
[1642093616924,9.858,152.23,152.2,0.32838815]
[1642093617123,5.126,152.22,152.12,341.35295148]
[1642093617323,5.126,152.22,152.12,340.35295148]
[1642093617523,11.636,152.22,152.12,340.35295148]
[1642093617722,44.5008,152.22,152.11,7.5578]
[1642093617925,1.64999521,152.21,152.09,2.628]
[1642093618124,9.8586,152.19,152.09,2.628]
[1642093618324,15.8483785,152.19,152.09,2.628]
[1642093618525,22.3583785,152.19,152.09,2.628]
[1642093618926,22.3583785,152.19,152.08,43.15073838]
[1642093618927,2.629,152.18,152.08,43.15073838]
[1642093619124,9.861,152.16,152.08,4.9304]
[1642093619328,9.861,152.16,152.05,2.129]
[1642093619525,10.519,152.15,152.05,2.129]
[1642093619724,18.26099521,152.15,152.05,2.129]
[1642093619925,32.8881,152.11,152.05,2.129]
[1642093620129,2.63,152.1,152.05,2.129]
[1642093620324,12.4961,152.1,152.05,2.129]
[1642093620525,18.7561,152.1,152.05,2.129]
[1642093620725,18.7561,152.1,152.0,16.45114041]
[1642093620726,8.39,152.1,152.0,15.95114041]
[1642093620930,9.46999521,152.16,152.04,4.9315]
[1642093621127,1.64999521,152.16,152.04,4.9315]
[1642093621327,17.68,152.18,152.05,2.60522842]
[1642093621526,17.68,152.18,152.06,2.629]
[1642093621933,7.82,152.21,152.09,4.93]
[1642093622129,7.82,152.21,152.06,2.879]
[1642093622130,7.82,152.22,152.1,2.628]
[1642093622336,7.82,152.22,152.08,8.07]
[1642093622556,7.82,152.22,152.09,2.628]
[1642093622758,7.82,152.22,152.1,10.82945341]
[1642093622958,7.82,152.22,152.15,4.9281]
[1642093624559,0.26,152.22,152.15,4.9281]
[1642093624957,7.82,152.28,152.15,4.9281]
[1642093625156,17.6734,152.28,152.15,4.9281]
[1642093625356,38.4920269,152.28,152.15,4.9281]
[1642093625959,2.626,152.27,152.15,4.9281]
[1642093626159,9.8548,152.26,152.15,4.9281]
[1642093626358,9.8548,152.26,152.14,4.9286]
[1642093626359,2.628,152.25,152.14,4.9286]
[1642093626559,7.82,152.24,152.12,24.2332]
[1642093626758,2.628,152.23,152.12,24.2332]
[1642093626959,9.138,152.23,152.12,24.2332]
[1642093627162,16.99830584,152.22,152.12,24.2332]
[1642093627562,23.50830584,152.22,152.13,2.628]
[1642093627760,23.50830584,152.22,152.12,24.2332]
[1642093628160,33.36580584,152.22,152.13,4.929]
[1642093628360,2.628,152.21,152.13,4.929]
[1642093628562,6.26,152.21,152.13,4.929]
[1642093628960,6.0,152.21,152.13,4.929]
[1642093629166,1.64999521,152.26,152.14,2.628]
[1642093629362,12.4817,152.28,152.2,4.9268]
[1642093629668,26.3017,152.28,152.16,16.4225]
[1642093629862,18.5098439,152.27,152.16,16.4225]
[1642093630061,24.5098439,152.27,152.16,16.4225]
[1642093630463,24.5098439,152.27,152.19,4.9271]
[1642093630664,7.82,152.26,152.14,2.628]
[1642093630863,0.07,152.24,152.08,2.628]
[1642093631162,32.87,152.2,152.04,2.628]
[1642093631362,9.86,152.18,152.07,4.9305]
[1642093631562,6.0,152.18,152.08,2.629]
[1642093631862,2.629,152.24,152.1,65.33]
[1642093632063,6.0,152.21,152.11,2.628]
[1642093632462,0.26,152.21,152.13,4.9283]
[1642093632964,16.106,152.23,152.13,7.76653071]
[1642093633161,16.106,152.23,152.13,4.9283]
[1642093633864,6.25,152.23,152.13,4.9283]
[1642093634063,0.25,152.23,152.18,3.9418]
[1642093634265,18.77517152,152.22,152.11,15.80862057]
[1642093634468,25.03517152,152.22,152.11,2.628]
[1642093634666,25.03517152,152.22,152.11,2.878]
[1642093634867,25.02517152,152.22,152.11,2.628]
[1642093635266,34.88137152,152.22,152.15,3.9424]
[1642093635566,2.628,152.21,152.11,2.628]
[1642093635966,6.51,152.21,152.11,2.628]
[1642093636970,9.138,152.21,152.09,48.5492]
[1642093637169,12.9947,152.21,152.12,3.9434]
[1642093637374,18.9947,152.21,152.12,3.9434]
[1642093637573,19.0647,152.21,152.09,48.5492]
[1642093637772,1.64999521,152.2,152.09,45.9212]
[1642093637972,2.629,152.19,152.09,45.9212]
[1642093638373,9.139,152.19,152.1,3.9439]
[1642093638572,3.139,152.19,152.1,14.15324629]
[1642093639272,3.139,152.19,152.1,3.9439]
[1642093639476,9.139,152.19,152.1,3.9439]
[1642093639672,6.51,152.19,152.1,3.9439]
[1642093640272,23.55896058,152.18,152.1,3.9439]
[1642093640473,24.06896058,152.18,152.1,3.9439]
[1642093640876,6.51,152.18,152.1,3.9439]
[1642093641474,0.51,152.18,152.1,3.9439]
[1642093641975,0.51,152.19,152.1,3.9439]
[1642093642379,16.3679,152.2,152.1,3.9439]
[1642093642776,6.26,152.2,152.1,14.26624222]
[1642093642976,0.26,152.2,152.1,14.26624222]
[1642093643177,6.26,152.2,152.1,79.59624222]
[1642093643378,2.629,152.22,152.1,93.90924222]
[1642093643579,10.448,152.27,152.19,3.9414]
[1642093643777,7.82,152.27,152.19,3.9414]
[1642093644182,17.74566959,152.26,152.19,3.9414]
[1642093644378,27.59916959,152.26,152.19,3.9414]
[1642093644779,27.85916959,152.26,152.19,3.9414]
[1642093645380,33.59916959,152.26,152.19,3.9414]
[1642093645582,33.84916959,152.26,152.19,3.9414]
[1642093646884,27.84916959,152.26,152.19,3.9414]
[1642093647082,28.10916959,152.26,152.19,3.9414]
[1642093648082,34.10916959,152.26,152.19,3.9414]
[1642093650514,15.8535,152.26,152.19,3.9414]
[1642093650714,2.626,152.29,152.19,3.9414]
[1642093650916,2.626,152.33,152.19,4.1914]
[1642093651118,2.696,152.33,152.19,3.9414]
[1642093651316,2.696,152.33,152.19,4.1914]
[1642093651516,23.7457261,152.32,152.19,14.51374222]
[1642093651717,33.5957261,152.32,152.26,3.9399]
[1642093652118,39.5957261,152.32,152.22,2.626]
[1642093653216,39.5957261,152.32,152.25,3.9402]
[1642093654017,39.9157261,152.32,152.25,3.9402]
[1642093654620,30.0657261,152.32,152.25,3.9402]
[1642093655421,6.32,152.32,152.25,3.9402]
[1642093655620,6.58,152.32,152.25,3.9402]
[1642093655820,0.58,152.32,152.25,3.9402]
[1642093656019,15.92,152.32,152.25,3.9402]
[1642093656425,10.43,152.32,152.25,3.9402]
[1642093656626,16.43,152.32,152.25,3.9402]
[1642093657227,6.33,152.32,152.25,3.9402]
[1642093657426,0.33,152.32,152.25,3.9402]
[1642093657830,0.07,152.32,152.25,3.9402]
[1642093658427,0.07,152.32,152.29,3.939]
[1642093658628,0.07,152.32,152.3,3.56439992]
[1642093659530,0.07,152.32,152.3,7.50339992]
[1642093660132,17.85502823,152.39,152.3,7.50339992]
[1642093660534,18.10502823,152.39,152.3,7.50339992]
[1642093661133,12.471,152.4,152.3,7.50339992]
[1642093661336,9.845,152.4,152.3,7.50339992]
[1642093661534,7.82,152.41,152.3,7.50339992]
[1642093661734,0.07,152.42,152.3,7.50339992]
[1642093662033,0.07,152.42,152.31,2.625]
[1642093662334,0.07,152.4,152.31,2.625]
[1642093662532,0.07,152.4,152.29,49.1828]
[1642093662533,22.80784546,152.38,152.29,49.1828]
[1642093663135,23.05784546,152.38,152.29,49.1828]
[1642093663333,23.05784546,152.38,152.25,2.625]
[1642093663334,2.695,152.37,152.25,2.625]
[1642093663533,9.205,152.37,152.23,9.67218996]
[1642093663734,10.85499521,152.37,152.23,9.67218996]
[1642093664334,9.8503,152.32,152.23,7.82]
[1642093664535,33.72874805,152.32,152.24,2.626]
[1642093664833,27.97874805,152.32,152.23,10.446]
[1642093665035,34.23874805,152.32,152.23,10.446]
[1642093665437,16.3603,152.32,152.23,10.446]
[1642093666233,16.3603,152.32,152.23,14.3868]
[1642093666637,16.4303,152.32,152.23,14.3868]
[1642093668945,16.4303,152.32,152.23,11.7608]
[1642093669745,15.9203,152.32,152.23,11.7608]
[1642093669947,6.07,152.32,152.23,12.0208]
[1642093670145,6.07,152.32,152.23,11.7608]
[1642093670345,0.07,152.32,152.23,11.7608]
[1642093670548,6.07,152.35,152.23,11.7608]
[1642093670748,0.07,152.33,152.23,3.9408]
[1642093671149,17.55063955,152.33,152.23,3.9408]
[1642093671353,9.8501,152.32,152.23,3.9408]
[1642093671548,0.07,152.31,152.22,48.6621]
[1642093671748,2.696,152.31,152.2,1.85218996]
[1642093671948,2.946,152.31,152.2,1.85218996]
[1642093672148,0.07,152.31,152.21,2.626]
[1642093672348,6.07,152.31,152.21,2.626]
[1642093672552,18.16902352,152.3,152.19,2.626]
[1642093672850,6.07,152.31,152.26,3.94]
[1642093673054,4.29861122,152.37,152.26,3.94]
[1642093673251,1.60261122,152.37,152.27,2.626]
[1642093673451,1.60261122,152.39,152.25,49.1739]
[1642093673852,19.47573432,152.38,152.25,49.4239]
[1642093674050,19.47573432,152.38,152.25,115.0139]
[1642093674250,19.47573432,152.38,152.32,3.9385]
[1642093674451,0.07,152.37,152.32,3.9385]
[1642093674852,0.07,152.39,152.32,3.9385]
[1642093676472,20.08028528,152.39,152.32,3.9385]
[1642093676674,19.58028528,152.39,152.32,3.9385]
[1642093676873,25.58028528,152.39,152.32,3.9385]
[1642093677074,6.0,152.39,152.32,3.9385]
[1642093677273,0.07,152.4,152.32,3.9385]
[1642093677474,4.22761122,152.44,152.33,65.33]
[1642093677674,1.60261122,152.44,152.34,2.624]
[1642093677874,1.60261122,152.44,152.41,3.936]
[1642093678074,1.60261122,152.44,152.42,3.56439992]
[1642093678875,2.684,152.46,152.42,3.56439992]
[1642093679076,6.06,152.46,152.42,3.56439992]
[1642093679277,0.06,152.46,152.42,3.56439992]
[1642093679477,6.06,152.46,152.42,3.56439992]
[1642093679779,6.06,152.46,152.37,13.1198]
[1642093680382,6.06,152.46,152.36,5.1618089]
[1642093680580,6.06,152.46,152.37,65.33]
[1642093680785,0.06,152.46,152.45,3.935]
[1642093681082,0.06,152.46,152.45,7.49939992]
[1642093682382,0.06,152.51,152.45,3.56439992]
[1642093683582,0.06,152.51,152.49,3.9341]
[1642093683984,0.06,152.51,152.5,3.56439992]
[1642093685084,0.06,152.56,152.5,3.56439992]
[1642093685484,0.06,152.56,152.5,3.81439992]
[1642093686087,0.06,152.56,152.5,6.43639992]
[1642093686285,0.06,152.56,152.53,3.933]
[1642093686487,0.06,152.56,152.53,4.183]
[1642093686686,0.06,152.56,152.54,3.56439992]
[1642093687086,0.06,152.56,152.54,3.81439992]
[1642093687285,0.06,152.56,152.54,9.81439992]
[1642093687486,1.60261122,152.6,152.58,3.9312]
[1642093687887,1.60261122,152.6,152.59,3.56439992]
[1642093688287,1.60261122,152.6,152.5,10.441]
[1642093688490,9.8321,152.6,152.5,23.5499]
[1642093688787,9.8321,152.6,152.5,13.1089]
[1642093688788,2.122,152.59,152.5,13.1089]
[1642093688986,8.122,152.59,152.5,13.1089]
[1642093689387,6.0,152.59,152.5,13.1089]
[1642093689587,6.0,152.6,152.48,37.35582223]
[1642093689786,6.0,152.63,152.49,10.442]
[1642093689991,10.22461122,152.64,152.49,16.952]
[1642093690188,7.60261122,152.64,152.49,16.952]
[1642093690791,6.0,152.64,152.49,16.952]
[1642093690988,8.621,152.66,152.57,13.1022]
[1642093691694,2.621,152.66,152.57,0.25]
[1642093691889,2.621,152.66,152.57,0.51]
[1642093692291,1.60261122,152.69,152.63,3.9302]
[1642093692488,1.60261122,152.69,152.61,8.274]
[1642093693089,1.60261122,152.69,152.61,8.524]
[1642093693289,1.60261122,152.69,152.67,3.929]
[1642093693496,124.95481245,152.71,152.61,0.25]
[1642093693689,6.0,152.69,152.61,0.25]
[1642093693891,31.55481245,152.71,152.61,0.25]
[1642093694089,31.55481245,152.71,152.59,48.3568]
[1642093694292,31.80481245,152.71,152.63,3.2743]
[1642093694694,33.45480766,152.71,152.59,48.3568]
[1642093694890,33.45480766,152.71,152.6,0.25]
[1642093695096,32.95480766,152.71,152.59,48.0968]
[1642093695292,42.77960766,152.71,152.62,0.9826]
[1642093695492,43.03960766,152.71,152.62,0.9826]
[1642093696503,43.03960766,152.71,152.61,0.9827]
[1642093696698,71.09718134,152.71,152.54,56.0226]
[1642093696895,6.42379837,152.7,152.54,55.5227]
[1642093697196,12.4493,152.69,152.54,55.5227]
[1642093697395,14.09929521,152.69,152.55,13.89516362]
[1642093697594,20.66424058,152.68,152.55,13.89516362]
[1642093697795,2.62,152.67,152.55,13.89516362]
[1642093697996,10.51999521,152.67,152.55,14.14516362]
[1642093698194,10.77999521,152.67,152.55,14.14516362]
[1642093698395,1.64999521,152.66,152.55,0.7501]
[1642093698596,9.8289,152.65,152.55,0.5001]
[1642093698895,10.0789,152.65,152.57,0.9829]
[1642093699098,16.3389,152.65,152.55,0.5001]
[1642093699295,2.621,152.64,152.54,47.7027]
[1642093699496,8.871,152.64,152.54,60.91881419]
[1642093699696,8.871,152.64,152.54,47.7027]
[1642093699895,20.35249521,152.64,152.54,47.7027]
[1642093700396,20.35249521,152.64,152.52,3.6042]
[1642093700595,28.17249521,152.64,152.52,2.621]
[1642093701096,38.35317671,152.64,152.52,2.621]
[1642093701497,38.35317671,152.64,152.48,2.621]
[1642093701698,38.35317671,152.64,152.47,63.93007615]
[1642093701896,38.35317671,152.64,152.47,60.65237615]
[1642093702098,93.4,152.62,152.47,68.47237615]
[1642093702296,18.7025,152.64,152.48,2.622]
[1642093702496,9.83,152.63,152.52,3.2765]
[1642093702699,6.25,152.64,152.53,3.58440568]
[1642093702896,6.25,152.63,152.53,3.58440568]
[1642093703095,6.25,152.63,152.55,0.983]
[1642093703499,6.51,152.63,152.53,3.58440568]
[1642093703696,0.51,152.63,152.53,3.58440568]
[1642093703896,6.25,152.63,152.53,3.58440568]
[1642093704100,6.25,152.63,152.57,0.9829]
[1642093704799,6.0,152.63,152.57,0.9829]
[1642093705199,15.8297,152.64,152.56,0.983]
[1642093705398,6.0,152.64,152.53,3.83440568]
[1642093705599,8.621,152.65,152.53,6.1472]
[1642093705801,2.621,152.65,152.53,6.1472]
[1642093706002,10.52099521,152.65,152.53,6.1472]
[1642093706701,10.27099521,152.65,152.54,3.276]
[1642093706905,6.26,152.65,152.54,3.276]
[1642093707103,0.26,152.65,152.54,3.786]
[1642093707302,6.26,152.65,152.54,3.786]